{"text_format":"1","workbook":"xlsx","n_sheets":15,"sheets":["ورقة1","ورقة4","ايصال طلبة","ورقة6","المصروفات","ورقة8","شهر 10","شهر 11","شهر 12","شهر 1-2017","شهر 2-2017","تجميع الشهور","ورقة11","ورقة12","الرئيسية"],"not_rendered":{"charts":0,"images":0,"macros":1,"external_links":0,"defined_names":21,"comments":0,"pivot_tables":0},"unopened":[],"bounds":{"document_bytes":16777216,"sheet_cells":100000,"rows_first":2000,"rows_last":500,"rows_between":2000,"halvings":0,"cell_chars":16384,"cell_head_chars":4096},"cells_cut":0,"cells_raw":0,"read":"whole","date_system":"1900"}

{"sheet":"ورقة1","index":0,"n_rows":164,"n_cols":50,"rows_kept":164,"cut":false,"hidden":false,"merged":[]}
[null,null,null,null,null,null,"اجمالي مدفوع",null,"المستهدف"]
[null,null,null,null,null,null,{"$f":"SUM(AQ5:AQ1000)","v":1650},null,{"$f":"SUM(I5:I1000)","v":43019}]
[null,null,null,"2016-01-03"]
["اسم الطالب","رقم القيد","الصف ","تاريخ التسجيل","المدة بلايام",null,"قيمة القسط السنوي","قيمة القسط المرحل","الاجمالي","المدفوع","تاريخ الدفع","الباقي","المدفوع","تاريخ الدفع","الباقي","المدفوع","تاريخ الدفع","الباقي","المدفوع","تاريخ الدفع","الباقي","المدفوع","تاريخ الدفع","الباقي","المدفوع","تاريخ الدفع","الباقي","المدفوع","تاريخ الدفع","الباقي","المدفوع","تاريخ الدفع","الباقي","المدفوع","تاريخ الدفع","الباقي","المدفوع","تاريخ الدفع","الباقي","المدفوع","تاريخ الدفع","الباقي","اجمالي مدفوع","اخر دفعة",null,"القيمة الباقية","باقي الدين","توضيح","النقل","رقم الدفعة"]
["ابتسام",null,"الاول","2016-09-26",{"$f":"DATEDIF($D$3,$D5,\"d\")","v":267},null,700,300,{"$f":"IF(A5<>\"\",IF(AW5<>\"\",AQ5,H5+G5),0)","v":1000},500,"2016-10-19",{"$f":"IF(J5<>\"\",I5-J5,0)","v":500},null,null,{"$f":"IF(M5<>\"\",L5-M5,0)","v":0},null,null,{"$f":"IF(P5<>\"\",O5-P5,0)","v":0},null,null,{"$f":"IF(S5<>\"\",R5-S5,0)","v":0},null,null,{"$f":"IF(V5<>\"\",U5-V5,0)","v":0},null,null,{"$f":"IF(Y5<>\"\",X5-Y5,0)","v":0},null,null,{"$f":"IF(AB5<>\"\",AA5-AB5,0)","v":0},null,null,{"$f":"IF(AE5<>\"\",AD5-AE5,0)","v":0},null,null,{"$f":"IF(AH5<>\"\",AG5-AH5,0)","v":0},null,null,{"$f":"IF(AK5<>\"\",AJ5-AK5,0)","v":0},null,null,{"$f":"IF(AN5<>\"\",AM5-AN5,0)","v":0},{"$f":"SUM(AN5+AK5+AH5+AE5+AB5+Y5+V5+S5+P5+M5+J5)","v":500},{"$f":"IF(AN5<>\"\",AN5,IF(AK5<>\"\",AK5,IF(AH5<>\"\",AH5,IF(AE5<>\"\",AE5,IF(AB5<>\"\",AB5,IF(Y5<>\"\",Y5,IF(V5<>\"\",V5,IF(S5<>\"\",S5,IF(P5<>\"\",P5,IF(M5<>\"\",M5,IF(J5<>\"\",J5,0)))))))))))","v":500},null,{"$f":"IF(AQ5=I5,0,IF(AP5>1,AP5,IF(AM5>1,AM5,IF(AJ5>1,AJ5,IF(AG5>1,AG5,IF(AD5>1,AD5,IF(AA5>1,AA5,IF(X5>1,X5,IF(U5>1,U5,IF(R5>1,R5,IF(O5>1,O5,IF(L5>1,L5,I5))))))))))))","v":500},{"$f":"IF(H5>AQ5,H5-AQ5,\"لا يوجد\")","v":"لا يوجد"},{"$f":"IF(AQ5=I5,\"تم دفع كامل القيمة\",\"القيمة غير مكتملة\")","v":"القيمة غير مكتملة"},null,{"$f":"COUNTIF(J5:AP5,\">1\")/3","v":1}]
["اروى",null,"التاسع","2016-10-16",287,null,700,300,1000,null,null,0,null,null,0,null,null,0,null,null,0,null,null,0,null,null,0,null,null,0,null,null,0,null,null,0,null,null,0,null,null,0,0,0,null,1000,300,"القيمة غير مكتملة",null,0]
["اسعد",null,"التاسع","2016-10-16",287,null,700,300,1000,null,null,0,null,null,0,null,null,0,null,null,0,null,null,0,null,null,0,null,null,0,null,null,0,null,null,0,null,null,0,null,null,0,0,0,null,1000,300,"القيمة غير مكتملة",null,0]
["اسلام",null,"الاول","2016-09-26",267,null,700,300,1000,null,null,0,null,null,0,null,null,0,null,null,0,null,null,0,null,null,0,null,null,0,null,null,0,null,null,0,null,null,0,null,null,0,0,0,null,1000,300,"القيمة غير مكتملة",null,0]
["الاء",null,"التاسع","2016-10-16",287,null,700,300,1000,null,null,0,null,null,0,null,null,0,null,null,0,null,null,0,null,null,0,null,null,0,null,null,0,null,null,0,null,null,0,null,null,0,0,0,null,1000,300,"القيمة غير مكتملة",null,0]
["الخامسة",null,"الخامس","2016-09-26",267,null,700,300,1000,null,null,0,null,null,0,null,null,0,null,null,0,null,null,0,null,null,0,null,null,0,null,null,0,null,null,0,null,null,0,null,null,0,0,0,null,1000,300,"القيمة غير مكتملة",null,0]
["اياد",null,"الاول","2016-09-26",267,null,700,300,1000,null,null,0,null,null,0,null,null,0,null,null,0,null,null,0,null,null,0,null,null,0,null,null,0,null,null,0,null,null,0,null,null,0,0,0,null,1000,300,"القيمة غير مكتملة",null,0]
["ايمان",null,"الاول","2016-10-17",288,null,700,300,830,330,"2016-10-17",500,500,"2016-10-17",0,null,null,0,null,null,0,null,null,0,null,null,0,null,null,0,null,null,0,null,null,0,null,null,0,null,null,0,830,500,null,0,"لا يوجد","تم دفع كامل القيمة","انتقل",1.6666666666666667]
["ايمن",null,"الاول","2016-10-17",288,null,700,300,1000,null,null,0,null,null,0,null,null,0,null,null,0,null,null,0,null,null,0,null,null,0,null,null,0,null,null,0,null,null,0,null,null,0,0,0,null,1000,300,"القيمة غير مكتملة",null,0]
["بلال",null,"الاول","2016-09-26",267,null,700,300,1000,null,null,0,null,null,0,null,null,0,null,null,0,null,null,0,null,null,0,null,null,0,null,null,0,null,null,0,null,null,0,null,null,0,0,0,null,1000,300,"القيمة غير مكتملة",null,0]
["ثامر",null,"الثاني","2016-09-26",267,null,700,300,1000,null,null,0,null,null,0,null,null,0,null,null,0,null,null,0,null,null,0,null,null,0,null,null,0,null,null,0,null,null,0,null,null,0,0,0,null,1000,300,"القيمة غير مكتملة",null,0]
["ثريا",null,"الثاني","2016-09-26",267,null,700,300,1000,null,null,0,null,null,0,null,null,0,null,null,0,null,null,0,null,null,0,null,null,0,null,null,0,null,null,0,null,null,0,null,null,0,0,0,null,1000,300,"القيمة غير مكتملة",null,0]
["جابر",null,"الثالث","2016-09-26",267,null,700,300,1000,null,null,0,null,null,0,null,null,0,null,null,0,null,null,0,null,null,0,null,null,0,null,null,0,null,null,0,null,null,0,null,null,0,0,0,null,1000,300,"القيمة غير مكتملة",null,0]
["جلال",null,"الثالث","2016-09-26",267,null,700,300,1000,null,null,0,null,null,0,null,null,0,null,null,0,null,null,0,null,null,0,null,null,0,null,null,0,null,null,0,null,null,0,null,null,0,0,0,null,1000,300,"القيمة غير مكتملة",null,0]
["جلال",null,"الثامن","2016-10-16",287,null,700,300,1000,null,null,0,null,null,0,null,null,0,null,null,0,null,null,0,null,null,0,null,null,0,null,null,0,null,null,0,null,null,0,null,null,0,0,0,null,1000,300,"القيمة غير مكتملة",null,0]
["جمال ",null,"الثالث","2016-09-26",267,null,700,300,1000,null,null,0,null,null,0,null,null,0,null,null,0,null,null,0,null,null,0,null,null,0,null,null,0,null,null,0,null,null,0,null,null,0,0,0,null,1000,300,"القيمة غير مكتملة",null,0]
["جميلة",null,"الثالث","2016-09-26",267,null,700,300,1000,null,null,0,null,null,0,null,null,0,null,null,0,null,null,0,null,null,0,null,null,0,null,null,0,null,null,0,null,null,0,null,null,0,0,0,null,1000,300,"القيمة غير مكتملة",null,0]
["جهاد",null,"الثامن","2016-10-16",287,null,700,300,1000,null,null,0,null,null,0,null,null,0,null,null,0,null,null,0,null,null,0,null,null,0,null,null,0,null,null,0,null,null,0,null,null,0,0,0,null,1000,300,"القيمة غير مكتملة",null,0]
["جهينة",null,"الثامن","2016-10-16",287,null,700,300,1000,null,null,0,null,null,0,null,null,0,null,null,0,null,null,0,null,null,0,null,null,0,null,null,0,null,null,0,null,null,0,null,null,0,0,0,null,1000,300,"القيمة غير مكتملة",null,0]
["خالد",null,"الخامس","2016-09-26",267,null,700,300,1000,null,null,0,null,null,0,null,null,0,null,null,0,null,null,0,null,null,0,null,null,0,null,null,0,null,null,0,null,null,0,null,null,0,0,0,null,1000,300,"القيمة غير مكتملة",null,0]
["خليفة",null,"الخامس","2016-09-26",267,null,700,300,1000,null,null,0,null,null,0,null,null,0,null,null,0,null,null,0,null,null,0,null,null,0,null,null,0,null,null,0,null,null,0,null,null,0,0,0,null,1000,300,"القيمة غير مكتملة",null,0]
["خميس",null,"الخامس","2016-09-26",267,null,700,300,1000,null,null,0,null,null,0,null,null,0,null,null,0,null,null,0,null,null,0,null,null,0,null,null,0,null,null,0,null,null,0,null,null,0,0,0,null,1000,300,"القيمة غير مكتملة",null,0]
["خيري",null,"الخامس","2016-09-26",267,null,700,300,1000,null,null,0,null,null,0,null,null,0,null,null,0,null,null,0,null,null,0,null,null,0,null,null,0,null,null,0,null,null,0,null,null,0,0,0,null,1000,300,"القيمة غير مكتملة",null,0]
["رائد",null,"الرابع","2016-09-26",267,null,700,300,1000,null,null,0,null,null,0,null,null,0,null,null,0,null,null,0,null,null,0,null,null,0,null,null,0,null,null,0,null,null,0,null,null,0,0,0,null,1000,300,"القيمة غير مكتملة",null,0]
["ربيع",null,"الرابع","2016-09-26",267,null,700,300,1000,null,null,0,null,null,0,null,null,0,null,null,0,null,null,0,null,null,0,null,null,0,null,null,0,null,null,0,null,null,0,null,null,0,0,0,null,1000,300,"القيمة غير مكتملة",null,0]
["ربيعة",null,"الرابع","2016-09-26",267,null,700,300,1000,null,null,0,null,null,0,null,null,0,null,null,0,null,null,0,null,null,0,null,null,0,null,null,0,null,null,0,null,null,0,null,null,0,0,0,null,1000,300,"القيمة غير مكتملة",null,0]
["رواد",null,"الرابع","2016-09-26",267,null,700,300,1000,null,null,0,null,null,0,null,null,0,null,null,0,null,null,0,null,null,0,null,null,0,null,null,0,null,null,0,null,null,0,null,null,0,0,0,null,1000,300,"القيمة غير مكتملة",null,0]
["سالم",null,"السادس","2016-09-26",267,null,700,300,1000,null,null,0,null,null,0,null,null,0,null,null,0,null,null,0,null,null,0,null,null,0,null,null,0,null,null,0,null,null,0,null,null,0,0,0,null,1000,300,"القيمة غير مكتملة",null,0]
["سالمة",null,"السادس","2016-09-26",267,{"$f":"(E33/7)*25","v":953.57142857142867},700,300,1000,null,null,0,null,null,0,null,null,0,null,null,0,null,null,0,null,null,0,null,null,0,null,null,0,null,null,0,null,null,0,null,null,0,0,0,null,1000,300,"القيمة غير مكتملة",null,0]
["سناء",null,"التمهيدي","2016-10-16",287,null,700,300,1000,null,null,0,null,null,0,null,null,0,null,null,0,null,null,0,null,null,0,null,null,0,null,null,0,null,null,0,null,null,0,null,null,0,0,0,null,1000,300,"القيمة غير مكتملة",null,0]
["سناء",null,"السادس","2016-09-26",267,{"$f":"(E35/7)*25","v":953.57142857142867},700,300,1000,null,null,0,null,null,0,null,null,0,null,null,0,null,null,0,null,null,0,null,null,0,null,null,0,null,null,0,null,null,0,null,null,0,0,0,null,1000,300,"القيمة غير مكتملة",null,0]
["سند",null,"التمهيدي","2016-10-16",287,null,700,300,1000,null,null,0,null,null,0,null,null,0,null,null,0,null,null,0,null,null,0,null,null,0,null,null,0,null,null,0,null,null,0,null,null,0,0,0,null,1000,300,"القيمة غير مكتملة",null,0]
["سند",null,"السادس","2016-09-26",267,{"$f":"(E37/7)*25","v":953.57142857142867},700,300,1000,null,null,0,null,null,0,null,null,0,null,null,0,null,null,0,null,null,0,null,null,0,null,null,0,null,null,0,null,null,0,null,null,0,0,0,null,1000,300,"القيمة غير مكتملة",null,0]
["سوسن",null,"التمهيدي","2016-10-16",287,null,700,300,1000,null,null,0,null,null,0,null,null,0,null,null,0,null,null,0,null,null,0,null,null,0,null,null,0,null,null,0,null,null,0,null,null,0,0,0,null,1000,300,"القيمة غير مكتملة",null,0]
["عامر",null,"السابع","2016-10-16",287,{"$f":"(E39/7)*25","v":1025},700,300,1000,null,null,0,null,null,0,null,null,0,null,null,0,null,null,0,null,null,0,null,null,0,null,null,0,null,null,0,null,null,0,null,null,0,0,0,null,1000,300,"القيمة غير مكتملة",null,0]
["عمر",null,"الثاني","2016-09-26",267,null,700,300,1000,null,null,0,null,null,0,null,null,0,null,null,0,null,null,0,null,null,0,null,null,0,null,null,0,null,null,0,null,null,0,null,null,0,0,0,null,1000,300,"القيمة غير مكتملة",null,0]
["عمر",null,"السابع","2016-10-16",287,{"$f":"(E41/7)*25","v":1025},700,300,1000,null,null,0,null,null,0,null,null,0,null,null,0,null,null,0,null,null,0,null,null,0,null,null,0,null,null,0,null,null,0,null,null,0,0,0,null,1000,300,"القيمة غير مكتملة",null,0]
["عمران",null,"السابع","2016-10-16",287,{"$f":"(E42/7)*25","v":1025},700,300,1000,null,null,0,null,null,0,null,null,0,null,null,0,null,null,0,null,null,0,null,null,0,null,null,0,null,null,0,null,null,0,null,null,0,0,0,null,1000,300,"القيمة غير مكتملة",null,0]
["لتلاتل",null,"الاول",null,{"$error":"#NUM!"},null,700,300,1000,null,null,0,null,null,0,null,null,0,null,null,0,null,null,0,null,null,0,null,null,0,null,null,0,null,null,0,null,null,0,null,null,0,0,0,null,1000,300,"القيمة غير مكتملة",null,0]
["محمد",null,"الثاني","2016-09-26",267,null,700,300,1000,null,null,0,null,null,0,null,null,0,null,null,0,null,null,0,null,null,0,null,null,0,null,null,0,null,null,0,null,null,0,null,null,0,0,0,null,1000,300,"القيمة غير مكتملة",null,0]
[null,"السابع",{"$f":"COUNTIF(#REF!,\"السابع\")","v":{"$error":"#REF!"}},null,null,null,null,null,77]
[null,"الثامن",{"$f":"COUNTIF(#REF!,\"الثامن\")","v":{"$error":"#REF!"}},null,null,null,null,null,{"$f":"SUM(I41:I43)","v":3000},1,"1900-01-02",3,4,"1900-01-04",null,null,null,null,null,null,null,null,null,null,null,null,null,null,null,null,null,null,null,null,null,null,null,null,null,null,null,null,null,{"$f":"SUM(AR41:AR43)","v":0},null,{"$f":"SUM(AT41:AT43)","v":3000}]
[null,"التاسع",{"$f":"COUNTIF(#REF!,\"التاسع\")","v":{"$error":"#REF!"}},null,null,null,null,null,7,5,"1900-01-06",6,89]
[null,"التمهيدي",{"$f":"COUNTIF(#REF!,\"التمهيدي\")","v":{"$error":"#REF!"}},null,"الاول",{"$f":"SUMIF(C41:C43,\"الاول\",I41:I43)","v":1000},null,null,8,33,"1900-02-24",66]
[null,"الثاني",{"$f":"COUNTIF(C41:C44,\"الثاني\")","v":1},null,null,null,null,null,null,null,null,null,null,"الثالث"]
[null,"الثالث",{"$f":"COUNTIF(C41:C44,\"الثالث\")","v":0},null,"الخامس",{"$f":"SUMIF(C43:C45,\"الخامس\",I43:I45)","v":0}]
[null,"الرابع",{"$f":"COUNTIF(C41:C44,\"الرابع\")","v":0},null,"السادس",{"$f":"SUMIF(#REF!,\"السادس\",#REF!)","v":{"$error":"#REF!"}}]
[null,"السادس",{"$f":"COUNTIF(C41:C43,\"السادس\")","v":0},null,"الثالث",{"$f":"SUMIF(#REF!,\"الثالث\",#REF!)","v":{"$error":"#REF!"}}]
[null,"الخامس",{"$f":"COUNTIF(C41:C45,\"الخامس\")","v":0},null,"الرابع",{"$f":"SUMIF(C48:C48,\"الرابع\",I48:I48)","v":0}]
[null,"الاول",{"$f":"COUNTIF(C41:C50,\"الاول\")","v":1},null,null,null,null,null,88]
[null,null,null,null,{"$f":"DATEDIF($D$3,$D55,\"d\")","v":{"$error":"#NUM!"}},null,700,300,{"$f":"IF(A55<>\"\",IF(AW55<>\"\",AQ55,H55+G55),0)","v":0},null,null,{"$f":"IF(J55<>\"\",I55-J55,0)","v":0},null,null,{"$f":"IF(M55<>\"\",L55-M55,0)","v":0},null,null,{"$f":"IF(P55<>\"\",O55-P55,0)","v":0},null,null,{"$f":"IF(S55<>\"\",R55-S55,0)","v":0},null,null,{"$f":"IF(V55<>\"\",U55-V55,0)","v":0},null,null,{"$f":"IF(Y55<>\"\",X55-Y55,0)","v":0},null,null,{"$f":"IF(AB55<>\"\",AA55-AB55,0)","v":0},null,null,{"$f":"IF(AE55<>\"\",AD55-AE55,0)","v":0},null,null,{"$f":"IF(AH55<>\"\",AG55-AH55,0)","v":0},null,null,{"$f":"IF(AK55<>\"\",AJ55-AK55,0)","v":0},null,null,{"$f":"IF(AN55<>\"\",AM55-AN55,0)","v":0},{"$f":"SUM(AN55+AK55+AH55+AE55+AB55+Y55+V55+S55+P55+M55+J55)","v":0},{"$f":"IF(AN55<>\"\",AN55,IF(AK55<>\"\",AK55,IF(AH55<>\"\",AH55,IF(AE55<>\"\",AE55,IF(AB55<>\"\",AB55,IF(Y55<>\"\",Y55,IF(V55<>\"\",V55,IF(S55<>\"\",S55,IF(P55<>\"\",P55,IF(M55<>\"\",M55,IF(J55<>\"\",J55,0)))))))))))","v":0},null,{"$f":"IF(AQ55=I55,0,IF(AP55>1,AP55,IF(AM55>1,AM55,IF(AJ55>1,AJ55,IF(AG55>1,AG55,IF(AD55>1,AD55,IF(AA55>1,AA55,IF(X55>1,X55,IF(U55>1,U55,IF(R55>1,R55,IF(O55>1,O55,IF(L55>1,L55,I55))))))))))))","v":0},{"$f":"IF(H55>AQ55,H55-AQ55,\"لا يوجد\")","v":300},{"$f":"IF(AQ55=I55,\"تم دفع كامل القيمة\",\"القيمة غير مكتملة\")","v":"تم دفع كامل القيمة"},null,{"$f":"COUNTIF(J55:AP55,\">1\")/3","v":0}]
[null,null,null,null,{"$error":"#NUM!"},null,700,300,0,null,null,0,null,null,0,null,null,0,null,null,0,null,null,0,null,null,0,null,null,0,null,null,0,null,null,0,null,null,0,null,null,0,0,0,null,0,300,"تم دفع كامل القيمة",null,0]
[null,null,null,null,{"$error":"#NUM!"},null,700,300,0,null,null,0,null,null,0,null,null,0,null,null,0,null,null,0,null,null,0,null,null,0,null,null,0,null,null,0,null,null,0,null,null,0,0,0,null,0,300,"تم دفع كامل القيمة",null,0]
[null,null,null,null,{"$error":"#NUM!"},null,700,300,0,null,null,0,null,null,0,null,null,0,null,null,0,null,null,0,null,null,0,null,null,0,null,null,0,null,null,0,null,null,0,null,null,0,0,0,null,0,300,"تم دفع كامل القيمة",null,0]
[null,null,null,"2016-09-30",271,null,700,300,0,null,null,0,null,null,0,null,null,0,null,null,0,null,null,0,null,null,0,null,null,0,null,null,0,null,null,0,null,null,0,null,null,0,0,0,null,0,300,"تم دفع كامل القيمة",null,0]
[null,null,null,null,{"$error":"#NUM!"},null,700,300,0,null,null,0,null,null,0,null,null,0,null,null,0,null,null,0,null,null,0,null,null,0,null,null,0,null,null,0,null,null,0,null,null,0,0,0,null,0,300,"تم دفع كامل القيمة",null,0]
[null,null,null,null,{"$error":"#NUM!"},null,700,300,0,null,null,0,null,null,0,null,null,0,null,null,0,null,null,0,null,null,0,null,null,0,null,null,0,null,null,0,null,null,0,null,null,0,0,0,null,0,300,"تم دفع كامل القيمة",null,0]
[null,null,null,null,{"$error":"#NUM!"},null,700,300,0,null,null,0,null,null,0,null,null,0,null,null,0,null,null,0,null,null,0,null,null,0,null,null,0,null,null,0,null,null,0,null,null,0,0,0,null,0,300,"تم دفع كامل القيمة",null,0]
[null,null,null,null,{"$error":"#NUM!"},null,700,300,0,null,null,0,null,null,0,null,null,0,null,null,0,null,null,0,null,null,0,null,null,0,null,null,0,null,null,0,null,null,0,null,null,0,0,0,null,0,300,"تم دفع كامل القيمة",null,0]
[null,null,null,null,{"$error":"#NUM!"},null,700,300,0,null,null,0,null,null,0,null,null,0,null,null,0,null,null,0,null,null,0,null,null,0,null,null,0,null,null,0,null,null,0,null,null,0,0,0,null,0,300,"تم دفع كامل القيمة",null,0]
[null,null,null,"2016-10-01",272,null,700,300,0,null,null,0,null,null,0,null,null,0,null,null,0,null,null,0,null,null,0,null,null,0,null,null,0,null,null,0,null,null,0,null,null,0,0,0,null,0,300,"تم دفع كامل القيمة",null,0]
[null,null,null,null,{"$error":"#NUM!"},null,700,300,0,null,null,0,null,null,0,null,null,0,null,null,0,null,null,0,null,null,0,null,null,0,null,null,0,null,null,0,null,null,0,null,null,0,0,0,null,0,300,"تم دفع كامل القيمة",null,0]
[null,null,null,"2016-11-23",325,null,700,300,0,null,null,0,null,null,0,null,null,0,null,null,0,null,null,0,null,null,0,null,null,0,null,null,0,null,null,0,null,null,0,null,null,0,0,0,null,0,300,"تم دفع كامل القيمة",null,0]
[null,null,null,"2016-11-24",326,null,700,300,0,null,null,0,null,null,0,null,null,0,null,null,0,null,null,0,null,null,0,null,null,0,null,null,0,null,null,0,null,null,0,null,null,0,0,0,null,0,300,"تم دفع كامل القيمة",null,0]
[null,null,null,"2016-11-25",327,null,700,300,0,null,null,0,null,null,0,null,null,0,null,null,0,null,null,0,null,null,0,null,null,0,null,null,0,null,null,0,null,null,0,null,null,0,0,0,null,0,300,"تم دفع كامل القيمة",null,0]
[null,null,null,"2016-11-26",328,100,700,300,0,null,null,0,null,null,0,null,null,0,null,null,0,null,null,0,null,null,0,null,null,0,null,null,0,null,null,0,null,null,0,null,null,0,0,0,null,0,300,"تم دفع كامل القيمة",null,0]
[null,null,null,"2016-11-27",329,null,700,300,0,null,null,0,null,null,0,null,null,0,null,null,0,null,null,0,null,null,0,null,null,0,null,null,0,null,null,0,null,null,0,null,null,0,0,0,null,0,300,"تم دفع كامل القيمة",null,0]
[null,null,null,"2016-11-28",330,null,700,300,0,null,null,0,null,null,0,null,null,0,null,null,0,null,null,0,null,null,0,null,null,0,null,null,0,null,null,0,null,null,0,null,null,0,0,0,null,0,300,"تم دفع كامل القيمة",null,0]
[null,null,null,"2016-09-26",267,null,700,300,0,null,null,0,null,null,0,null,null,0,null,null,0,null,null,0,null,null,0,null,null,0,null,null,0,null,null,0,null,null,0,null,null,0,0,0,null,0,300,"تم دفع كامل القيمة",null,0]
[null,null,null,"2016-11-30",332,null,700,300,0,null,null,0,null,null,0,null,null,0,null,null,0,null,null,0,null,null,0,null,null,0,null,null,0,null,null,0,null,null,0,null,null,0,0,0,null,0,300,"تم دفع كامل القيمة",null,0]
[null,null,null,"2016-12-01",333,null,700,300,0,null,null,0,null,null,0,null,null,0,null,null,0,null,null,0,null,null,0,null,null,0,null,null,0,null,null,0,null,null,0,null,null,0,0,0,null,0,300,"تم دفع كامل القيمة",null,0]
[null,null,null,"2016-12-02",334,null,700,300,0,null,null,0,null,null,0,null,null,0,null,null,0,null,null,0,null,null,0,null,null,0,null,null,0,null,null,0,null,null,0,null,null,0,0,0,null,0,300,"تم دفع كامل القيمة",null,0]
[null,null,null,"2016-12-03",335,null,700,300,0,null,null,0,null,null,0,null,null,0,null,null,0,null,null,0,null,null,0,null,null,0,null,null,0,null,null,0,null,null,0,null,null,0,0,0,null,0,300,"تم دفع كامل القيمة",null,0]
[null,null,null,"2016-12-04",336,null,700,300,0,null,null,0,null,null,0,null,null,0,null,null,0,null,null,0,null,null,0,null,null,0,null,null,0,null,null,0,null,null,0,null,null,0,0,0,null,0,300,"تم دفع كامل القيمة",null,0]
[null,null,null,"2016-10-02",273,null,700,300,0,null,null,0,null,null,0,null,null,0,null,null,0,null,null,0,null,null,0,null,null,0,null,null,0,null,null,0,null,null,0,null,null,0,0,0,null,0,300,"تم دفع كامل القيمة",null,0]
[null,null,null,"2016-12-06",338,null,700,300,0,null,null,0,null,null,0,null,null,0,null,null,0,null,null,0,null,null,0,null,null,0,null,null,0,null,null,0,null,null,0,null,null,0,0,0,null,0,300,"تم دفع كامل القيمة",null,0]
[null,null,null,"2016-12-07",339,null,700,300,0,null,null,0,null,null,0,null,null,0,null,null,0,null,null,0,null,null,0,null,null,0,null,null,0,null,null,0,null,null,0,null,null,0,0,0,null,0,300,"تم دفع كامل القيمة",null,0]
[null,null,null,"2016-12-10",342,null,700,300,0,null,null,0,null,null,0,null,null,0,null,null,0,null,null,0,null,null,0,null,null,0,null,null,0,null,null,0,null,null,0,null,null,0,0,0,null,0,300,"تم دفع كامل القيمة",null,0]
[null,null,null,"2016-12-11",343,null,700,300,0,null,null,0,null,null,0,null,null,0,null,null,0,null,null,0,null,null,0,null,null,0,null,null,0,null,null,0,null,null,0,null,null,0,0,0,null,0,300,"تم دفع كامل القيمة",null,0]
[null,null,null,"2016-12-12",344,null,700,300,0,null,null,0,null,null,0,null,null,0,null,null,0,null,null,0,null,null,0,null,null,0,null,null,0,null,null,0,null,null,0,null,null,0,0,0,null,0,300,"تم دفع كامل القيمة",null,0]
[null,null,null,"2016-01-08",5,null,700,300,0,null,null,0,null,null,0,null,null,0,null,null,0,null,null,0,null,null,0,null,null,0,null,null,0,null,null,0,null,null,0,null,null,0,0,0,null,0,300,"تم دفع كامل القيمة",null,0]
[null,null,null,"2016-12-14",346,null,700,300,0,null,null,0,null,null,0,null,null,0,null,null,0,null,null,0,null,null,0,null,null,0,null,null,0,null,null,0,null,null,0,null,null,0,0,0,null,0,300,"تم دفع كامل القيمة",null,0]
[null,null,null,"2016-12-15",{"$f":"DATEDIF($D$3,$D87,\"d\")","v":347},null,700,300,{"$f":"IF(A87<>\"\",IF(AW87<>\"\",AQ87,H87+G87),0)","v":0},null,null,{"$f":"IF(J87<>\"\",I87-J87,0)","v":0},null,null,{"$f":"IF(M87<>\"\",L87-M87,0)","v":0},null,null,{"$f":"IF(P87<>\"\",O87-P87,0)","v":0},null,null,{"$f":"IF(S87<>\"\",R87-S87,0)","v":0},null,null,{"$f":"IF(V87<>\"\",U87-V87,0)","v":0},null,null,{"$f":"IF(Y87<>\"\",X87-Y87,0)","v":0},null,null,{"$f":"IF(AB87<>\"\",AA87-AB87,0)","v":0},null,null,{"$f":"IF(AE87<>\"\",AD87-AE87,0)","v":0},null,null,{"$f":"IF(AH87<>\"\",AG87-AH87,0)","v":0},null,null,{"$f":"IF(AK87<>\"\",AJ87-AK87,0)","v":0},null,null,{"$f":"IF(AN87<>\"\",AM87-AN87,0)","v":0},{"$f":"SUM(AN87+AK87+AH87+AE87+AB87+Y87+V87+S87+P87+M87+J87)","v":0},{"$f":"IF(AN87<>\"\",AN87,IF(AK87<>\"\",AK87,IF(AH87<>\"\",AH87,IF(AE87<>\"\",AE87,IF(AB87<>\"\",AB87,IF(Y87<>\"\",Y87,IF(V87<>\"\",V87,IF(S87<>\"\",S87,IF(P87<>\"\",P87,IF(M87<>\"\",M87,IF(J87<>\"\",J87,0)))))))))))","v":0},null,{"$f":"IF(AQ87=I87,0,IF(AP87>1,AP87,IF(AM87>1,AM87,IF(AJ87>1,AJ87,IF(AG87>1,AG87,IF(AD87>1,AD87,IF(AA87>1,AA87,IF(X87>1,X87,IF(U87>1,U87,IF(R87>1,R87,IF(O87>1,O87,IF(L87>1,L87,I87))))))))))))","v":0},{"$f":"IF(H87>AQ87,H87-AQ87,\"لا يوجد\")","v":300},{"$f":"IF(AQ87=I87,\"تم دفع كامل القيمة\",\"القيمة غير مكتملة\")","v":"تم دفع كامل القيمة"},null,{"$f":"COUNTIF(J87:AP87,\">1\")/3","v":0}]
[null,null,null,"2016-12-16",348,null,700,300,0,null,null,0,null,null,0,null,null,0,null,null,0,null,null,0,null,null,0,null,null,0,null,null,0,null,null,0,null,null,0,null,null,0,0,0,null,0,300,"تم دفع كامل القيمة",null,0]
[null,null,null,"2016-12-17",349,null,700,300,0,null,null,0,null,null,0,null,null,0,null,null,0,null,null,0,null,null,0,null,null,0,null,null,0,null,null,0,null,null,0,null,null,0,0,0,null,0,300,"تم دفع كامل القيمة",null,0]
[null,null,null,"2016-12-18",350,null,700,300,0,null,null,0,null,null,0,null,null,0,null,null,0,null,null,0,null,null,0,null,null,0,null,null,0,null,null,0,null,null,0,null,null,0,0,0,null,0,300,"تم دفع كامل القيمة",null,0]
[null,null,null,"2016-12-19",351,null,700,300,0,null,null,0,null,null,0,null,null,0,null,null,0,null,null,0,null,null,0,null,null,0,null,null,0,null,null,0,null,null,0,null,null,0,0,0,null,0,300,"تم دفع كامل القيمة",null,0]
[null,null,null,"2016-12-20",352,null,700,300,0,null,null,0,null,null,0,null,null,0,null,null,0,null,null,0,null,null,0,null,null,0,null,null,0,null,null,0,null,null,0,null,null,0,0,0,null,0,300,"تم دفع كامل القيمة",null,0]
[null,null,null,"2016-12-21",353,null,700,300,0,null,null,0,null,null,0,null,null,0,null,null,0,null,null,0,null,null,0,null,null,0,null,null,0,null,null,0,null,null,0,null,null,0,0,0,null,0,300,"تم دفع كامل القيمة",null,0]
[null,null,null,"2016-12-22",354,null,700,300,0,null,null,0,null,null,0,null,null,0,null,null,0,null,null,0,null,null,0,null,null,0,null,null,0,null,null,0,null,null,0,null,null,0,0,0,null,0,300,"تم دفع كامل القيمة",null,0]
[null,null,null,"2016-12-23",355,null,700,300,0,null,null,0,null,null,0,null,null,0,null,null,0,null,null,0,null,null,0,null,null,0,null,null,0,null,null,0,null,null,0,null,null,0,0,0,null,0,300,"تم دفع كامل القيمة",null,0]
[null,null,null,"2016-12-24",356,null,700,300,0,null,null,0,null,null,0,null,null,0,null,null,0,null,null,0,null,null,0,null,null,0,null,null,0,null,null,0,null,null,0,null,null,0,0,0,null,0,300,"تم دفع كامل القيمة",null,0]
[null,null,null,"2016-12-25",357,null,700,300,0,null,null,0,null,null,0,null,null,0,null,null,0,null,null,0,null,null,0,null,null,0,null,null,0,null,null,0,null,null,0,null,null,0,0,0,null,0,300,"تم دفع كامل القيمة",null,0]
[null,null,null,"2016-12-26",358,null,700,300,0,null,null,0,null,null,0,null,null,0,null,null,0,null,null,0,null,null,0,null,null,0,null,null,0,null,null,0,null,null,0,null,null,0,0,0,null,0,300,"تم دفع كامل القيمة",null,0]
[null,null,null,"2016-12-27",359,null,700,300,0,null,null,0,null,null,0,null,null,0,null,null,0,null,null,0,null,null,0,null,null,0,null,null,0,null,null,0,null,null,0,null,null,0,0,0,null,0,300,"تم دفع كامل القيمة",null,0]
[null,null,null,null,{"$error":"#NUM!"},null,700,300,0,null,null,0,null,null,0,null,null,0,null,null,0,null,null,0,null,null,0,null,null,0,null,null,0,null,null,0,null,null,0,null,null,0,0,0,null,0,300,"تم دفع كامل القيمة",null,0]
[null,null,null,"2016-12-28",360,null,700,300,0,null,null,0,null,null,0,null,null,0,null,null,0,null,null,0,null,null,0,null,null,0,null,null,0,null,null,0,null,null,0,null,null,0,0,0,null,0,300,"تم دفع كامل القيمة",null,0]
[null,null,null,"2016-12-29",361,null,700,300,0,null,null,0,null,null,0,null,null,0,null,null,0,null,null,0,null,null,0,null,null,0,null,null,0,null,null,0,null,null,0,null,null,0,0,0,null,0,300,"تم دفع كامل القيمة",null,0]
[null,null,null,"2016-12-30",362,null,700,300,0,null,null,0,null,null,0,null,null,0,null,null,0,null,null,0,null,null,0,null,null,0,null,null,0,null,null,0,null,null,0,null,null,0,0,0,null,0,300,"تم دفع كامل القيمة",null,0]
[null,null,null,"2016-12-31",363,null,700,300,0,null,null,0,null,null,0,null,null,0,null,null,0,null,null,0,null,null,0,null,null,0,null,null,0,null,null,0,null,null,0,null,null,0,0,0,null,0,300,"تم دفع كامل القيمة",null,0]
[null,null,null,"2016-01-05",2,null,700,300,0,null,null,0,null,null,0,null,null,0,null,null,0,null,null,0,null,null,0,null,null,0,null,null,0,null,null,0,null,null,0,null,null,0,0,0,null,0,300,"تم دفع كامل القيمة",null,0]
[null,null,null,"2016-03-01",58,null,700,300,0,null,null,0,null,null,0,null,null,0,null,null,0,null,null,0,null,null,0,null,null,0,null,null,0,null,null,0,null,null,0,null,null,0,0,0,null,0,300,"تم دفع كامل القيمة",null,0]
[null,null,null,"2016-06-08",157,null,700,300,0,null,null,0,null,null,0,null,null,0,null,null,0,null,null,0,null,null,0,null,null,0,null,null,0,null,null,0,null,null,0,null,null,0,0,0,null,0,300,"تم دفع كامل القيمة",null,0]
[null,null,null,null,{"$error":"#NUM!"},null,700,300,0,null,null,0,null,null,0,null,null,0,null,null,0,null,null,0,null,null,0,null,null,0,null,null,0,null,null,0,null,null,0,null,null,0,0,0,null,0,300,"تم دفع كامل القيمة",null,0]
[null,null,null,null,{"$error":"#NUM!"},null,700,300,0,null,null,0,null,null,0,null,null,0,null,null,0,null,null,0,null,null,0,null,null,0,null,null,0,null,null,0,null,null,0,null,null,0,0,0,null,0,300,"تم دفع كامل القيمة",null,0]
[null,null,null,null,{"$error":"#NUM!"},null,700,300,0,null,null,0,null,null,0,null,null,0,null,null,0,null,null,0,null,null,0,null,null,0,null,null,0,null,null,0,null,null,0,null,null,0,0,0,null,0,300,"تم دفع كامل القيمة",null,0]
[null,null,null,null,{"$error":"#NUM!"},null,700,300,0,null,null,0,null,null,0,null,null,0,null,null,0,null,null,0,null,null,0,null,null,0,null,null,0,null,null,0,null,null,0,null,null,0,0,0,null,0,300,"تم دفع كامل القيمة",null,0]
[null,null,null,null,{"$error":"#NUM!"},null,700,300,0,null,null,0,null,null,0,null,null,0,null,null,0,null,null,0,null,null,0,null,null,0,null,null,0,null,null,0,null,null,0,null,null,0,0,0,null,0,300,"تم دفع كامل القيمة",null,0]
[null,null,null,null,{"$error":"#NUM!"},null,700,300,0,null,null,0,null,null,0,null,null,0,null,null,0,null,null,0,null,null,0,null,null,0,null,null,0,null,null,0,null,null,0,null,null,0,0,0,null,0,300,"تم دفع كامل القيمة",null,0]
[null,null,null,null,{"$error":"#NUM!"},null,700,300,0,null,null,0,null,null,0,null,null,0,null,null,0,null,null,0,null,null,0,null,null,0,null,null,0,null,null,0,null,null,0,null,null,0,0,0,null,0,300,"تم دفع كامل القيمة",null,0]
[null,null,null,null,{"$error":"#NUM!"},null,700,300,0,null,null,0,null,null,0,null,null,0,null,null,0,null,null,0,null,null,0,null,null,0,null,null,0,null,null,0,null,null,0,null,null,0,0,0,null,0,300,"تم دفع كامل القيمة",null,0]
[null,null,null,null,{"$error":"#NUM!"},null,700,300,0,null,null,0,null,null,0,null,null,0,null,null,0,null,null,0,null,null,0,null,null,0,null,null,0,null,null,0,null,null,0,null,null,0,0,0,null,0,300,"تم دفع كامل القيمة",null,0]
[null,null,null,null,{"$error":"#NUM!"},null,700,300,0,null,null,0,null,null,0,null,null,0,null,null,0,null,null,0,null,null,0,null,null,0,null,null,0,null,null,0,null,null,0,null,null,0,0,0,null,0,300,"تم دفع كامل القيمة",null,0]
[null,null,null,null,{"$error":"#NUM!"},null,700,300,0,null,null,0,null,null,0,null,null,0,null,null,0,null,null,0,null,null,0,null,null,0,null,null,0,null,null,0,null,null,0,null,null,0,0,0,null,0,300,"تم دفع كامل القيمة",null,0]
[null,null,null,null,{"$f":"DATEDIF($D$3,$D119,\"d\")","v":{"$error":"#NUM!"}},null,700,300,{"$f":"IF(A119<>\"\",IF(AW119<>\"\",AQ119,H119+G119),0)","v":0},null,null,{"$f":"IF(J119<>\"\",I119-J119,0)","v":0},null,null,{"$f":"IF(M119<>\"\",L119-M119,0)","v":0},null,null,{"$f":"IF(P119<>\"\",O119-P119,0)","v":0},null,null,{"$f":"IF(S119<>\"\",R119-S119,0)","v":0},null,null,{"$f":"IF(V119<>\"\",U119-V119,0)","v":0},null,null,{"$f":"IF(Y119<>\"\",X119-Y119,0)","v":0},null,null,{"$f":"IF(AB119<>\"\",AA119-AB119,0)","v":0},null,null,{"$f":"IF(AE119<>\"\",AD119-AE119,0)","v":0},null,null,{"$f":"IF(AH119<>\"\",AG119-AH119,0)","v":0},null,null,{"$f":"IF(AK119<>\"\",AJ119-AK119,0)","v":0},null,null,{"$f":"IF(AN119<>\"\",AM119-AN119,0)","v":0},{"$f":"SUM(AN119+AK119+AH119+AE119+AB119+Y119+V119+S119+P119+M119+J119)","v":0},{"$f":"IF(AN119<>\"\",AN119,IF(AK119<>\"\",AK119,IF(AH119<>\"\",AH119,IF(AE119<>\"\",AE119,IF(AB119<>\"\",AB119,IF(Y119<>\"\",Y119,IF(V119<>\"\",V119,IF(S119<>\"\",S119,IF(P119<>\"\",P119,IF(M119<>\"\",M119,IF(J119<>\"\",J119,0)))))))))))","v":0},null,{"$f":"IF(AQ119=I119,0,IF(AP119>1,AP119,IF(AM119>1,AM119,IF(AJ119>1,AJ119,IF(AG119>1,AG119,IF(AD119>1,AD119,IF(AA119>1,AA119,IF(X119>1,X119,IF(U119>1,U119,IF(R119>1,R119,IF(O119>1,O119,IF(L119>1,L119,I119))))))))))))","v":0},{"$f":"IF(H119>AQ119,H119-AQ119,\"لا يوجد\")","v":300},{"$f":"IF(AQ119=I119,\"تم دفع كامل القيمة\",\"القيمة غير مكتملة\")","v":"تم دفع كامل القيمة"},null,{"$f":"COUNTIF(J119:AP119,\">1\")/3","v":0}]
[null,null,null,null,{"$error":"#NUM!"},null,700,300,0,null,null,0,null,null,0,null,null,0,null,null,0,null,null,0,null,null,0,null,null,0,null,null,0,null,null,0,null,null,0,null,null,0,0,0,null,0,300,"تم دفع كامل القيمة",null,0]
[null,null,null,null,{"$error":"#NUM!"},null,700,300,0,null,null,0,null,null,0,null,null,0,null,null,0,null,null,0,null,null,0,null,null,0,null,null,0,null,null,0,null,null,0,null,null,0,0,0,null,0,300,"تم دفع كامل القيمة",null,0]
[null,null,null,null,{"$error":"#NUM!"},null,700,300,0,null,null,0,null,null,0,null,null,0,null,null,0,null,null,0,null,null,0,null,null,0,null,null,0,null,null,0,null,null,0,null,null,0,0,0,null,0,300,"تم دفع كامل القيمة",null,0]
[null,null,null,null,{"$error":"#NUM!"},null,700,300,0,null,null,0,null,null,0,null,null,0,null,null,0,null,null,0,null,null,0,null,null,0,null,null,0,null,null,0,null,null,0,null,null,0,0,0,null,0,300,"تم دفع كامل القيمة",null,0]
[null,null,null,null,{"$error":"#NUM!"},null,700,300,0,null,null,0,null,null,0,null,null,0,null,null,0,null,null,0,null,null,0,null,null,0,null,null,0,null,null,0,null,null,0,null,null,0,0,0,null,0,300,"تم دفع كامل القيمة",null,0]
[null,null,null,null,{"$error":"#NUM!"},null,700,300,0,null,null,0,null,null,0,null,null,0,null,null,0,null,null,0,null,null,0,null,null,0,null,null,0,null,null,0,null,null,0,null,null,0,0,0,null,0,300,"تم دفع كامل القيمة",null,0]
[null,null,null,null,{"$error":"#NUM!"},null,700,300,0,null,null,0,null,null,0,null,null,0,null,null,0,null,null,0,null,null,0,null,null,0,null,null,0,null,null,0,null,null,0,null,null,0,0,0,null,0,300,"تم دفع كامل القيمة",null,0]
[null,null,null,null,{"$error":"#NUM!"},null,700,300,0,null,null,0,null,null,0,null,null,0,null,null,0,null,null,0,null,null,0,null,null,0,null,null,0,null,null,0,null,null,0,null,null,0,0,0,null,0,300,"تم دفع كامل القيمة",null,0]
[null,null,null,null,{"$error":"#NUM!"},null,700,300,0,null,null,0,null,null,0,null,null,0,null,null,0,null,null,0,null,null,0,null,null,0,null,null,0,null,null,0,null,null,0,null,null,0,0,0,null,0,300,"تم دفع كامل القيمة",null,0]
[null,null,null,null,{"$error":"#NUM!"},null,700,300,0,null,null,0,null,null,0,null,null,0,null,null,0,null,null,0,null,null,0,null,null,0,null,null,0,null,null,0,null,null,0,null,null,0,0,0,null,0,300,"تم دفع كامل القيمة",null,0]
[null,null,null,null,{"$error":"#NUM!"},null,700,300,0,null,null,0,null,null,0,null,null,0,null,null,0,null,null,0,null,null,0,null,null,0,null,null,0,null,null,0,null,null,0,null,null,0,0,0,null,0,300,"تم دفع كامل القيمة",null,0]
[null,null,null,null,{"$error":"#NUM!"},null,700,300,0,null,null,0,null,null,0,null,null,0,null,null,0,null,null,0,null,null,0,null,null,0,null,null,0,null,null,0,null,null,0,null,null,0,0,0,null,0,300,"تم دفع كامل القيمة",null,0]
[null,null,null,null,{"$error":"#NUM!"},null,700,300,0,null,null,0,null,null,0,null,null,0,null,null,0,null,null,0,null,null,0,null,null,0,null,null,0,null,null,0,null,null,0,null,null,0,0,0,null,0,300,"تم دفع كامل القيمة",null,0]
[null,null,null,null,{"$error":"#NUM!"},null,700,300,0,null,null,0,null,null,0,null,null,0,null,null,0,null,null,0,null,null,0,null,null,0,null,null,0,null,null,0,null,null,0,null,null,0,0,0,null,0,300,"تم دفع كامل القيمة",null,0]
[null,null,null,null,{"$error":"#NUM!"},null,700,300,0,null,null,0,null,null,0,null,null,0,null,null,0,null,null,0,null,null,0,null,null,0,null,null,0,null,null,0,null,null,0,null,null,0,0,0,null,0,300,"تم دفع كامل القيمة",null,0]
[null,null,null,null,{"$error":"#NUM!"},null,700,300,0,null,null,0,null,null,0,null,null,0,null,null,0,null,null,0,null,null,0,null,null,0,null,null,0,null,null,0,null,null,0,null,null,0,0,0,null,0,300,"تم دفع كامل القيمة",null,0]
[null,null,null,null,{"$error":"#NUM!"},null,700,300,0,null,null,0,null,null,0,null,null,0,null,null,0,null,null,0,null,null,0,null,null,0,null,null,0,null,null,0,null,null,0,null,null,0,0,0,null,0,300,"تم دفع كامل القيمة",null,0]
[null,null,null,null,{"$error":"#NUM!"},null,700,300,0,null,null,0,null,null,0,null,null,0,null,null,0,null,null,0,null,null,0,null,null,0,null,null,0,null,null,0,null,null,0,null,null,0,0,0,null,0,300,"تم دفع كامل القيمة",null,0]
[null,null,null,null,{"$error":"#NUM!"},null,700,300,0,null,null,0,null,null,0,null,null,0,null,null,0,null,null,0,null,null,0,null,null,0,null,null,0,null,null,0,null,null,0,null,null,0,0,0,null,0,300,"تم دفع كامل القيمة",null,0]
[null,null,null,null,{"$error":"#NUM!"},null,700,300,0,null,null,0,null,null,0,null,null,0,null,null,0,null,null,0,null,null,0,null,null,0,null,null,0,null,null,0,null,null,0,null,null,0,0,0,null,0,300,"تم دفع كامل القيمة",null,0]
[null,null,null,null,{"$error":"#NUM!"},null,700,300,0,null,null,0,null,null,0,null,null,0,null,null,0,null,null,0,null,null,0,null,null,0,null,null,0,null,null,0,null,null,0,null,null,0,0,0,null,0,300,"تم دفع كامل القيمة",null,0]
[null,null,null,null,{"$error":"#NUM!"},null,700,300,0,null,null,0,null,null,0,null,null,0,null,null,0,null,null,0,null,null,0,null,null,0,null,null,0,null,null,0,null,null,0,null,null,0,0,0,null,0,300,"تم دفع كامل القيمة",null,0]
[null,null,null,null,{"$error":"#NUM!"},null,700,300,0,null,null,0,null,null,0,null,null,0,null,null,0,null,null,0,null,null,0,null,null,0,null,null,0,null,null,0,null,null,0,null,null,0,0,0,null,0,300,"تم دفع كامل القيمة",null,0]
[null,null,null,null,{"$error":"#NUM!"},null,700,300,0,null,null,0,null,null,0,null,null,0,null,null,0,null,null,0,null,null,0,null,null,0,null,null,0,null,null,0,null,null,0,null,null,0,0,0,null,0,300,"تم دفع كامل القيمة",null,0]
[null,null,null,null,{"$error":"#NUM!"},null,700,300,0,null,null,0,null,null,0,null,null,0,null,null,0,null,null,0,null,null,0,null,null,0,null,null,0,null,null,0,null,null,0,null,null,0,0,0,null,0,300,"تم دفع كامل القيمة",null,0]
[null,null,null,null,{"$error":"#NUM!"},null,700,300,0,null,null,0,null,null,0,null,null,0,null,null,0,null,null,0,null,null,0,null,null,0,null,null,0,null,null,0,null,null,0,null,null,0,0,0,null,0,300,"تم دفع كامل القيمة",null,0]
[null,null,null,null,{"$error":"#NUM!"},null,700,300,0,null,null,0,null,null,0,null,null,0,null,null,0,null,null,0,null,null,0,null,null,0,null,null,0,null,null,0,null,null,0,null,null,0,0,0,null,0,300,"تم دفع كامل القيمة",null,0]
[null,null,null,null,{"$error":"#NUM!"},null,700,300,0,null,null,0,null,null,0,null,null,0,null,null,0,null,null,0,null,null,0,null,null,0,null,null,0,null,null,0,null,null,0,null,null,0,0,0,null,0,300,"تم دفع كامل القيمة",null,0]
[null,null,null,null,{"$error":"#NUM!"},null,700,300,0,null,null,0,null,null,0,null,null,0,null,null,0,null,null,0,null,null,0,null,null,0,null,null,0,null,null,0,null,null,0,null,null,0,0,0,null,0,300,"تم دفع كامل القيمة",null,0]
[null,null,null,null,{"$error":"#NUM!"},null,700,300,0,null,null,0,null,null,0,null,null,0,null,null,0,null,null,0,null,null,0,null,null,0,null,null,0,null,null,0,null,null,0,null,null,0,0,0,null,0,300,"تم دفع كامل القيمة",null,0]
[null,null,null,"2016-09-24",265,null,700,300,0,null,null,0,null,null,0,null,null,0,null,null,0,null,null,0,null,null,0,null,null,0,null,null,0,null,null,0,null,null,0,null,null,0,0,0,null,0,300,"تم دفع كامل القيمة",null,0]
[null,null,null,null,{"$f":"DATEDIF($D$3,$D151,\"d\")","v":{"$error":"#NUM!"}},null,700,300,{"$f":"IF(A151<>\"\",IF(AW151<>\"\",AQ151,H151+G151),0)","v":0},null,null,{"$f":"IF(J151<>\"\",I151-J151,0)","v":0},null,null,{"$f":"IF(M151<>\"\",L151-M151,0)","v":0},null,null,{"$f":"IF(P151<>\"\",O151-P151,0)","v":0},null,null,{"$f":"IF(S151<>\"\",R151-S151,0)","v":0},null,null,{"$f":"IF(V151<>\"\",U151-V151,0)","v":0},null,null,{"$f":"IF(Y151<>\"\",X151-Y151,0)","v":0},null,null,{"$f":"IF(AB151<>\"\",AA151-AB151,0)","v":0},null,null,{"$f":"IF(AE151<>\"\",AD151-AE151,0)","v":0},null,null,{"$f":"IF(AH151<>\"\",AG151-AH151,0)","v":0},null,null,{"$f":"IF(AK151<>\"\",AJ151-AK151,0)","v":0},null,null,{"$f":"IF(AN151<>\"\",AM151-AN151,0)","v":0},{"$f":"SUM(AN151+AK151+AH151+AE151+AB151+Y151+V151+S151+P151+M151+J151)","v":0},{"$f":"IF(AN151<>\"\",AN151,IF(AK151<>\"\",AK151,IF(AH151<>\"\",AH151,IF(AE151<>\"\",AE151,IF(AB151<>\"\",AB151,IF(Y151<>\"\",Y151,IF(V151<>\"\",V151,IF(S151<>\"\",S151,IF(P151<>\"\",P151,IF(M151<>\"\",M151,IF(J151<>\"\",J151,0)))))))))))","v":0},null,{"$f":"IF(AQ151=I151,0,IF(AP151>1,AP151,IF(AM151>1,AM151,IF(AJ151>1,AJ151,IF(AG151>1,AG151,IF(AD151>1,AD151,IF(AA151>1,AA151,IF(X151>1,X151,IF(U151>1,U151,IF(R151>1,R151,IF(O151>1,O151,IF(L151>1,L151,I151))))))))))))","v":0},{"$f":"IF(H151>AQ151,H151-AQ151,\"لا يوجد\")","v":300},{"$f":"IF(AQ151=I151,\"تم دفع كامل القيمة\",\"القيمة غير مكتملة\")","v":"تم دفع كامل القيمة"},null,{"$f":"COUNTIF(J151:AP151,\">1\")/3","v":0}]
[null,null,null,"2016-11-16",318,null,700,300,0,null,null,0,null,null,0,null,null,0,null,null,0,null,null,0,null,null,0,null,null,0,null,null,0,null,null,0,null,null,0,null,null,0,0,0,null,0,300,"تم دفع كامل القيمة",null,0]
[null,null,null,"2016-09-24",265,null,700,300,0,null,null,0,null,null,0,null,null,0,null,null,0,null,null,0,null,null,0,null,null,0,null,null,0,null,null,0,null,null,0,null,null,0,0,0,null,0,300,"تم دفع كامل القيمة",null,0]
[null,null,null,"2016-09-24",265,null,700,300,0,null,null,0,null,null,0,null,null,0,null,null,0,null,null,0,null,null,0,null,null,0,null,null,0,null,null,0,null,null,0,null,null,0,0,0,null,0,300,"تم دفع كامل القيمة",null,0]
[null,null,null,"2016-09-24",265,null,700,300,0,null,null,0,null,null,0,null,null,0,null,null,0,null,null,0,null,null,0,null,null,0,null,null,0,null,null,0,null,null,0,null,null,0,0,0,null,0,300,"تم دفع كامل القيمة",null,0]
[null,null,null,"2016-09-16",257,null,700,300,0,320,"2016-09-25",-320,null,null,0,null,null,0,null,null,0,null,null,0,null,null,0,null,null,0,null,null,0,null,null,0,null,null,0,null,null,0,320,320,null,0,"لا يوجد","القيمة غير مكتملة",null,0.66666666666666663]
[null,null,null,"2016-09-24",265,null,700,300,0,null,null,0,null,null,0,null,null,0,null,null,0,null,null,0,null,null,0,null,null,0,null,null,0,null,null,0,null,null,0,null,null,0,0,0,null,0,300,"تم دفع كامل القيمة",null,0]
[null,null,null,"2016-09-16",257,null,700,300,0,null,null,0,null,null,0,null,null,0,null,null,0,null,null,0,null,null,0,null,null,0,null,null,0,null,null,0,null,null,0,null,null,0,0,0,null,0,300,"تم دفع كامل القيمة",null,0]
[null,null,null,"2016-09-24",265,null,700,300,0,null,null,0,null,null,0,null,null,0,null,null,0,null,null,0,null,null,0,null,null,0,null,null,0,null,null,0,null,null,0,null,null,0,0,0,null,0,300,"تم دفع كامل القيمة",null,0]
[null,null,null,"2016-09-24",265,null,700,300,0,null,null,0,null,null,0,null,null,0,null,null,0,null,null,0,null,null,0,null,null,0,null,null,0,null,null,0,null,null,0,null,null,0,0,0,null,0,300,"تم دفع كامل القيمة",null,0]
[null,null,null,"2016-09-24",265,null,700,300,0,null,null,0,null,null,0,null,null,0,null,null,0,null,null,0,null,null,0,null,null,0,null,null,0,null,null,0,null,null,0,null,null,0,0,0,null,0,300,"تم دفع كامل القيمة",null,0]
[null,null,null,null,"الثاني",{"$f":"SUMIF(#REF!,\"الثاني\",#REF!)","v":{"$error":"#REF!"}},null,null,9]
[]
[null,null,{"$f":"SUM(C157+C164)","v":0}]

{"sheet":"ورقة4","index":1,"n_rows":20,"n_cols":5,"rows_kept":20,"cut":false,"hidden":false,"merged":[[2,1,3,7]]}
[]
[]
[null,"توضيح للحركة المالية لايرادات الطلبة"]
[]
[]
[]
[]
[]
[null,"الصف","الاجمالي المستهدف","الاجمالي المدفوع","القيمة الباقية"]
[null,"الاول",{"$f":"INDEX(ورقة1!$I$154,COUNTA(B$10))","v":0},{"$f":"ورقة1!AQ155","v":0},{"$f":"ورقة1!AT155","v":0}]
[null,"الثاني",null,{"$f":"ورقة1!AQ156","v":320},{"$f":"ورقة1!AT156","v":0}]
[null,"الثالث",null,{"$f":"ورقة1!AQ157","v":0},{"$f":"ورقة1!AT157","v":0}]
[null,"الرابع",null,{"$f":"ورقة1!AQ158","v":0},{"$f":"ورقة1!AT158","v":0}]
[null,"الخامس",null,{"$f":"ورقة1!AQ159","v":0},{"$f":"ورقة1!AT159","v":0}]
[null,"السادس",null,{"$f":"ورقة1!AQ160","v":0},{"$f":"ورقة1!AT160","v":0}]
[null,"السابع",null,{"$f":"ورقة1!AQ161","v":0},{"$f":"ورقة1!AT161","v":0}]
[null,"الثامن",null,{"$f":"ورقة1!AQ162","v":0},{"$f":"ورقة1!AT162","v":0}]
[null,"التاسع",null,{"$f":"ورقة1!AQ163","v":0},{"$f":"ورقة1!AT163","v":0}]
[null,null,"المستهدف","المستلم","الباقي"]
[null,null,{"$f":"SUM(C10:C18)","v":0},{"$f":"SUM(D10:D18)","v":320},{"$f":"SUM(E10:E18)","v":0}]

{"sheet":"ايصال طلبة","index":2,"n_rows":67,"n_cols":9,"rows_kept":67,"cut":false,"hidden":false,"merged":[[19,0,19,8],[38,5,38,6],[37,5,37,6],[22,2,22,4],[25,0,25,1],[27,0,27,1],[27,2,27,3],[27,4,27,5],[29,6,29,7],[33,2,33,3],[35,2,35,4],[27,6,27,7],[28,6,28,7],[17,5,17,6],[1,2,1,4],[4,0,4,1],[6,0,6,1],[6,2,6,3],[7,6,7,7],[8,6,8,7],[12,2,12,3],[14,2,14,4],[6,4,6,5],[6,6,6,7],[16,5,16,6]]}
[]
[null,null,"مدرسة النهج السليم",null,null,null,null,null,"OFFSET(ورقة1!A5;MATCH(ورقة5!G7;ورقة1!C5:C400;0)-1;;COUNTIF(ورقة1!C5:C400;ورقة5!G7))"]
[]
[]
["ايصال مالي",null,null,null,null,"دفعة رقم",{"$f":"VLOOKUP($C$7,ورقة1!$A1:$AX146,50,FALSE)","v":0}]
[]
["اسم الطالب              /",null,"سوسن",null,"الصف               /",null,"التمهيدي"]
["دين سابق","القيمة السنوية","اجمالي القيمة","القيمة المدفوعة","الدفعة الحالية","القيمة الباقية","التاريخ"]
[{"$f":"VLOOKUP($C$7,ورقة1!$A5:$AX150,8,FALSE)","v":300},{"$f":"VLOOKUP($C$7,ورقة1!$A5:$AX150,7,FALSE)","v":700},{"$f":"VLOOKUP($C$7,ورقة1!$A5:$AX150,9,FALSE)","v":1000},{"$f":"VLOOKUP($C$7,ورقة1!$A5:$AX150,43,FALSE)","v":0},{"$f":"VLOOKUP($C$7,ورقة1!$A5:$AX150,44,FALSE)","v":0},{"$f":"VLOOKUP($C$7,ورقة1!$A5:$AX150,46,FALSE)","v":1000},{"$f":"TODAY()","v":"2016-10-21"}]
[]
[]
[]
[null,null,"دين سابق",null,{"$f":"VLOOKUP($C$7,ورقة1!$A5:$AX150,47,FALSE)","v":300}]
[]
[null,null,{"$f":"VLOOKUP($C$7,ورقة1!$A5:$AX150,48,FALSE)","v":"القيمة غير مكتملة"}]
[]
[null,null,null,null,null,"الشئون المالية"]
[null,null,null,null,null,"..........................."]
[]
["……………………………………………………………………………………………………………"]
[]
[]
[null,null,{"$f":"C2","v":"مدرسة النهج السليم"}]
[]
[]
["ايصال مالي",null,null,null,null,"دفعة رقم",{"$f":"G5","v":0}]
[]
[{"$f":"A7","v":"اسم الطالب              /"},null,{"$f":"C7","v":"سوسن"},null,"الصف                   /",null,{"$f":"G7","v":"التمهيدي"}]
["دين سابق","القيمة السنوية","اجمالي القيمة","القيمة المدفوعة","الدفعة الحالية","القيمة الباقية","التاريخ"]
[{"$f":"A9","v":300},700,1000,0,0,1000,"2016-10-21"]
[]
[]
[]
[null,null,"دين سابق",null,{"$f":"E13","v":300}]
[]
[null,null,{"$f":"C15","v":"القيمة غير مكتملة"}]
[]
[null,null,null,null,null,"الشئون المالية"]
[null,null,null,null,null,"..........................."]
[]
[]
[]
[]
[]
[]
[]
[]
[]
[]
[]
[]
[]
[]
[null,null,null,"الصفوف"]
[null,null,null,"الاول"]
[null,null,null,"الثاني"]
[null,null,null,"الثالث"]
[null,null,null,"الرابع"]
[null,null,null,"الخامس"]
[null,null,null,"السادس"]
[null,null,null,"السابع"]
[null,null,null,"الثامن"]
[null,null,null,"التاسع"]
[null,null,null,"اول ثانوي"]
[null,null,null,"ثاني ثانوي"]
[null,null,null,"ثالث ثانوي"]
[null,null,null,"التمهيدي"]

{"sheet":"ورقة6","index":3,"n_rows":8,"n_cols":10,"rows_kept":8,"cut":false,"hidden":false,"merged":[]}
[]
[]
[]
[]
[null,"الاول","الثاني","الثالث","الرابع","الخامس","السادس","السابع","الثامن","التاسع"]
["المستهدف",{"$f":"ورقة1!F156","v":0},{"$f":"ورقة1!F157","v":0},{"$f":"ورقة1!F158","v":0},{"$f":"ورقة1!F159","v":0},{"$f":"ورقة1!F160","v":0},{"$f":"ورقة1!F161","v":0}]
["الموجود"]
["الباقي"]

{"sheet":"المصروفات","index":4,"n_rows":10,"n_cols":12,"rows_kept":10,"cut":false,"hidden":false,"merged":[]}
[]
[]
[]
[]
[]
["ت","نوع الصرف","رقم الفاتورة","نوع المواد","تاريخ الفيتورة","قيمة الفيتورة","اسم الموظف",null,null,"مجموع قيمة الفواتير","اصول ثابتة","مستهلكة"]
[1,"اثاث مدرسي",20,"ثابتة","2016-10-17",120,"علي",null,null,{"$f":"SUM(F7:F300)","v":3295},{"$f":"SUMIF(D7:D300,\"ثابتة\",F7:F300)","v":120},{"$f":"SUMIF(D7:D300,\"مستهلكة\",F7:F300)","v":3175}]
[2,"قرطاسية",21,"مستهلكة","2016-10-17",115,"احمد"]
[3,"ايجار سيارة",22,"مستهلكة","2016-10-17",60,"عمر"]
[4,"ايجار مبنى",24,"مستهلكة","2016-10-18",3000,"احمد"]

{"sheet":"ورقة8","index":5,"n_rows":18,"n_cols":7,"rows_kept":18,"cut":false,"hidden":false,"merged":[[9,2,10,6],[14,2,15,6],[17,3,17,5],[2,2,3,6],[4,4,5,4]]}
[]
[]
[null,null,"المدخول  ...   المصروف  ...  الموجود  "]
[]
[null,null,null,null,{"$f":"TODAY()","v":"2016-10-21"}]
[]
[null,null,"القيمة النقدية","ايرادات طلبة","الاجمالي الكلي","ديون طلبة","الاجمالي بالديون"]
[null,null,5000,{"$f":"ورقة1!G2","v":1650},{"$f":"SUM(C8:D8)","v":6650},{"$f":"ورقة1!I2-ورقة1!G2","v":41369},{"$f":"ورقة1!I2","v":43019}]
[]
[null,null,"المصروفات"]
[]
[null,null,"اجمالي فواتير","اجمالي رواتب","اجمالي كلي"]
[null,null,{"$f":"المصروفات!J7","v":3295},{"$f":"'تجميع الشهور'!E22","v":550},{"$f":"SUM(C13:D13)","v":3845}]
[]
[null,null,"الصافي الموجود"]
[]
[]
[null,null,null,{"$f":"SUM(E8-E13)","v":2805}]

{"sheet":"شهر 10","index":6,"n_rows":8,"n_cols":24,"rows_kept":8,"cut":false,"hidden":false,"merged":[[1,7,1,14]]}
[]
[null,null,null,null,null,null,null,"المالية .... رواتب شهر 10",null,null,null,null,null,null,null,null,null,{"$f":"TODAY()","v":"2016-10-21"}]
[]
["ت","اسم المعلم","التخصص","الوظيفة","الراتب","عدد الفصول","عدد الحصص","قيمة الحصة","الاجمالي الاسبوعي","الاجمالي الشهري","الغياب","منحة اضافية","قيمة مرحلة","الصافي","دفعة اولى","دفعة ثانية","دفعة ثالثة","دفعة رابعة","اجمالي مدفوع","الباقي",null,"اجمالي مستحق ش 10","اجمالي مدفوع شهر 10","اجمالي باقي ش10"]
[1,null,null,"معلم",null,"6+5+7",10,8,{"$f":"SUM(H5*G5)","v":80},{"$f":"SUM(I5*4+E5)","v":320},2,20,null,{"$f":"SUM(J5-(K5*H5)+M5+L5)","v":324},150,null,null,null,{"$f":"SUM(O5+P5+Q5+R5)","v":150},{"$f":"SUM(N5-S5)","v":174},null,{"$f":"SUM(N5:N100)","v":1274},{"$f":"SUM(S5:S100)","v":350},{"$f":"SUM(T5:T100)","v":924}]
[2,null,null,"موظف",null,null,5,50,{"$f":"SUM(H6*G6)","v":250},{"$f":"SUM(I6*4)","v":1000},1,null,null,{"$f":"SUM(J6-(K6*H6))","v":950},200,null,null,null,{"$f":"SUM(O6+P6+Q6+R6)","v":200},{"$f":"SUM(N6-S6)","v":750}]
[3]
[4]

{"sheet":"شهر 11","index":7,"n_rows":8,"n_cols":24,"rows_kept":8,"cut":false,"hidden":false,"merged":[[1,7,1,14]]}
[]
[null,null,null,null,null,null,null,"المالية .... رواتب شهر 11",null,null,null,null,null,null,null,null,null,{"$f":"TODAY()","v":"2016-10-21"}]
[]
["ت","اسم المعلم","التخصص","الوظيفة","الراتب","عدد الفصول","عدد الحصص","قيمة الحصة","الاجمالي الاسبوعي","الاجمالي الشهري","الغياب","منحة اضافية","قيمة مرحلة","الصافي","دفعة اولى","دفعة ثانية","دفعة ثالثة","دفعة رابعة","اجمالي مدفوع","الباقي",null,"اجمالي مستحق ش 11","اجمالي مدفوع شهر 11","اجمالي باقي ش11"]
[1,null,null,"معلم",500,"6+5+7",10,8,{"$f":"SUM(H5*G5)","v":80},{"$f":"SUM(I5*4+E5)","v":820},null,null,{"$f":"'شهر 10'!T5","v":174},{"$f":"SUM(J5-(K5*H5)+M5+L5)","v":994},null,null,null,null,{"$f":"SUM(O5+P5+Q5+R5)","v":0},{"$f":"SUM(N5-S5)","v":994},null,{"$f":"SUM(N5:N100)","v":1944},{"$f":"SUM(S5:S100)","v":200},{"$f":"SUM(T5:T100)","v":1744}]
[2,null,null,"موظف",null,null,5,50,{"$f":"SUM(H6*G6)","v":250},{"$f":"SUM(I6*4)","v":1000},1,null,null,{"$f":"SUM(J6-(K6*H6))","v":950},200,null,null,null,{"$f":"SUM(O6+P6+Q6+R6)","v":200},{"$f":"SUM(N6-S6)","v":750}]
[3]
[4]

{"sheet":"شهر 12","index":8,"n_rows":8,"n_cols":24,"rows_kept":8,"cut":false,"hidden":false,"merged":[[1,7,1,14]]}
[]
[null,null,null,null,null,null,null,"المالية .... رواتب شهر 12",null,null,null,null,null,null,null,null,null,{"$f":"TODAY()","v":"2016-10-21"}]
[]
["ت","اسم المعلم","التخصص","الوظيفة","الراتب","عدد الفصول","عدد الحصص","قيمة الحصة","الاجمالي الاسبوعي","الاجمالي الشهري","الغياب","منحة اضافية","قيمة مرحلة","الصافي","دفعة اولى","دفعة ثانية","دفعة ثالثة","دفعة رابعة","اجمالي مدفوع","الباقي",null,"اجمالي مستحق ش 11","اجمالي مدفوع شهر 11","اجمالي باقي ش11"]
[1,null,null,"معلم",300,"6+5+7",10,8,{"$f":"SUM(H5*G5)","v":80},{"$f":"SUM(I5*4+E5)","v":620},null,50,{"$f":"'شهر 11'!T5","v":994},{"$f":"SUM(J5-(K5*H5)+M5+L5)","v":1664},10,1,7,50,{"$f":"SUM(O5+P5+Q5+R5)","v":68},{"$f":"SUM(N5-S5)","v":1596},null,{"$f":"SUM(N5:N100)","v":2614},{"$f":"SUM(S5:S100)","v":268},{"$f":"SUM(T5:T100)","v":2346}]
[2,null,null,"موظف",null,null,5,50,{"$f":"SUM(H6*G6)","v":250},{"$f":"SUM(I6*4)","v":1000},1,null,null,{"$f":"SUM(J6-(K6*H6))","v":950},200,null,null,null,{"$f":"SUM(O6+P6+Q6+R6)","v":200},{"$f":"SUM(N6-S6)","v":750}]
[3]
[4]

{"sheet":"شهر 1-2017","index":9,"n_rows":8,"n_cols":24,"rows_kept":8,"cut":false,"hidden":false,"merged":[[1,7,1,14]]}
[]
[null,null,null,null,null,null,null,"المالية .... رواتب شهر 1/2017",null,null,null,null,null,null,null,null,null,{"$f":"TODAY()","v":"2016-10-21"}]
[]
["ت","اسم المعلم","التخصص","الوظيفة","الراتب","عدد الفصول","عدد الحصص","قيمة الحصة","الاجمالي الاسبوعي","الاجمالي الشهري","الغياب","منحة اضافية","قيمة مرحلة","الصافي","دفعة اولى","دفعة ثانية","دفعة ثالثة","دفعة رابعة","اجمالي مدفوع","الباقي",null,"اجمالي مستحق ش 11","اجمالي مدفوع شهر 11","اجمالي باقي ش11"]
[1,null,null,"معلم",300,"6+5+7",10,8,{"$f":"SUM(H5*G5)","v":80},{"$f":"SUM(I5*4+E5)","v":620},null,null,{"$f":"'شهر 12'!T5","v":1596},{"$f":"SUM(J5-(K5*H5)+M5+L5)","v":2216},10,1,7,50,{"$f":"SUM(O5+P5+Q5+R5)","v":68},{"$f":"SUM(N5-S5)","v":2148},null,{"$f":"SUM(N5:N100)","v":3166},{"$f":"SUM(S5:S100)","v":268},{"$f":"SUM(T5:T100)","v":2898}]
[2,null,null,"موظف",null,null,5,50,{"$f":"SUM(H6*G6)","v":250},{"$f":"SUM(I6*4)","v":1000},1,null,null,{"$f":"SUM(J6-(K6*H6))","v":950},200,null,null,null,{"$f":"SUM(O6+P6+Q6+R6)","v":200},{"$f":"SUM(N6-S6)","v":750}]
[3]
[4]

{"sheet":"شهر 2-2017","index":10,"n_rows":8,"n_cols":24,"rows_kept":8,"cut":false,"hidden":false,"merged":[[1,7,1,14]]}
[]
[null,null,null,null,null,null,null,"المالية .... رواتب شهر 2/2017",null,null,null,null,null,null,null,null,null,{"$f":"TODAY()","v":"2016-10-21"}]
[]
["ت","اسم المعلم","التخصص","الوظيفة","الراتب","عدد الفصول","عدد الحصص","قيمة الحصة","الاجمالي الاسبوعي","الاجمالي الشهري","الغياب","منحة اضافية","قيمة مرحلة","الصافي","دفعة اولى","دفعة ثانية","دفعة ثالثة","دفعة رابعة","اجمالي مدفوع","الباقي",null,"اجمالي مستحق ش 11","اجمالي مدفوع شهر 11","اجمالي باقي ش11"]
[1,null,null,"معلم",300,"6+5+7",10,8,{"$f":"SUM(H5*G5)","v":80},{"$f":"SUM(I5*4+E5)","v":620},null,null,{"$f":"'شهر 1-2017'!T5","v":2148},{"$f":"SUM(J5-(K5*H5)+M5+L5)","v":2768},10,1,7,50,{"$f":"SUM(O5+P5+Q5+R5)","v":68},{"$f":"SUM(N5-S5)","v":2700},null,{"$f":"SUM(N5:N100)","v":3718},{"$f":"SUM(S5:S100)","v":268},{"$f":"SUM(T5:T100)","v":3450}]
[2,null,null,"موظف",null,null,5,50,{"$f":"SUM(H6*G6)","v":250},{"$f":"SUM(I6*4)","v":1000},1,null,null,{"$f":"SUM(J6-(K6*H6))","v":950},200,null,null,null,{"$f":"SUM(O6+P6+Q6+R6)","v":200},{"$f":"SUM(N6-S6)","v":750}]
[3]
[4]

{"sheet":"تجميع الشهور","index":11,"n_rows":22,"n_cols":6,"rows_kept":22,"cut":false,"hidden":false,"merged":[]}
[]
[]
[]
[]
[null,null,"الشهر","اجمالي مستحق ","اجمالي  مدفوع","اجمالي باقي"]
[null,null,"شهر 10",{"$f":"'شهر 10'!V5","v":1274},{"$f":"'شهر 10'!W5","v":350},{"$f":"'شهر 10'!X5","v":924}]
[null,null,"شهر 11",{"$f":"'شهر 11'!V5","v":1944},{"$f":"'شهر 11'!W5","v":200},{"$f":"'شهر 11'!X5","v":1744}]
[null,null,"شهر 12"]
[null,null," شهر 1-2017"]
[null,null,"شهر 2-2017"]
[]
[]
[]
[]
[]
[]
[]
[]
[]
[]
[]
[null,null,null,{"$f":"SUM(D6:D21)","v":3218},{"$f":"SUM(E6:E21)","v":550},{"$f":"SUM(F6:F21)","v":2668}]

{"sheet":"ورقة11","index":12,"n_rows":0,"n_cols":0,"rows_kept":0,"cut":false,"hidden":false,"merged":[]}

{"sheet":"ورقة12","index":13,"n_rows":0,"n_cols":0,"rows_kept":0,"cut":false,"hidden":false,"merged":[]}

{"sheet":"الرئيسية","index":14,"n_rows":0,"n_cols":0,"rows_kept":0,"cut":false,"hidden":false,"merged":[]}